bitfinex-derivatives/quotes_ETHF0:USTF0_20251126
["timestamp","ask_amount","ask_price","bid_price","bid_amount"]
[1764119198785,0.27995013,2954.0,2953.6,1.23073205]
[1764119201792,0.00365013,2954.0,2953.6,1.23073205]
[1764119201982,0.27465013,2954.0,2953.6,1.23073205]
[1764119204285,0.4753,2953.7,2953.2,0.266]
[1764119204489,0.271,2953.5,2953.2,1.49673205]
[1764119207496,0.271,2953.0,2952.9,0.1744868]
[1764119212991,0.271,2953.0,2952.9,0.0050868]
[1764119216101,0.7463,2953.0,2952.9,0.0050868]
[1764119230513,0.7463,2953.0,2952.9,0.82264534]
[1764119236015,0.4717,2952.8,2952.5,2.4207238]
[1764119236217,0.4717,2952.1,2952.0,0.82151881]
[1764119241016,0.47675752,2952.3,2952.2,0.4551]
[1764119243018,0.271,2953.0,2952.2,0.4551]
[1764119243217,0.7427,2953.0,2952.9,0.81755854]
[1764119244323,0.4717,2952.7,2952.6,0.81755854]
[1764119245219,0.4717,2952.7,2952.6,1.27265854]
[1764119247120,0.271,2953.0,2952.6,1.27265854]
[1764119247321,0.4717,2952.7,2952.6,1.27265854]
[1764119248832,0.271,2953.0,2952.6,1.27265854]
[1764119249036,0.7427,2953.0,2952.9,0.81755854]
[1764119251237,0.7427,2953.0,2952.5,1.139]
[1764119251439,0.7427,2953.0,2952.6,1.27265854]
[1764119251440,0.271,2953.0,2952.6,1.27265854]
[1764119251630,0.7427,2953.0,2952.9,1.27265854]
[1764119253242,0.7427,2953.0,2952.9,0.81755854]
[1764119253540,0.4717,2952.9,2952.8,0.81755854]
[1764119253941,0.4717,2952.9,2952.8,1.27265854]
[1764119255642,0.4717,2952.9,2952.8,0.81755854]
[1764119257236,0.4717,2952.9,2952.8,1.27265854]
[1764119258342,0.4717,2952.6,2952.5,0.81755854]
[1764119259337,0.4717,2952.6,2952.5,1.27265854]
[1764119261950,0.4717,2952.6,2952.5,0.81755854]
[1764119262654,0.755,2952.5,2952.4,0.81755854]
[1764119263550,0.755,2952.5,2952.4,1.27625854]
[1764119265156,0.755,2952.5,2952.4,0.81755854]
[1764119266947,0.755,2952.5,2952.4,1.27625854]
[1764119267348,0.755,2952.5,2952.4,0.81755854]
[1764119268656,0.755,2952.5,2952.4,0.81800913]
[1764119269659,0.4758,2952.1,2952.0,1.2806694]
[1764119269950,0.4758,2952.1,2952.0,2.09867853]
[1764119271357,0.4758,2952.1,2952.0,1.2806694]
[1764119271552,0.4758,2952.1,2952.0,0.8219694]
[1764119271753,0.4758,2952.1,2952.0,1.2806694]
[1764119272456,0.4758,2952.1,2952.0,0.8219694]
[1764119274357,0.4758,2951.9,2951.8,2.30439007]
[1764119274559,0.4758,2951.6,2951.5,3.0439233]
[1764119274761,0.4758,2951.6,2951.5,3.86193243]
[1764119275352,0.47992701,2951.6,2951.5,4.32335202]
[1764119275557,0.00412701,2951.6,2951.5,4.60835202]
[1764119277367,0.47992701,2951.6,2951.5,4.60835202]
[1764119279466,0.47992701,2951.6,2951.5,4.32335202]
[1764119280766,0.47992701,2951.6,2951.5,4.61445202]
[1764119280968,0.00412701,2951.6,2951.5,4.61445202]
[1764119281567,0.2792,2952.5,2951.7,0.4897]
[1764119281770,0.7579,2952.5,2952.4,0.81800913]
[1764119282568,0.76199162,2952.5,2952.4,0.81800913]
[1764119283267,0.28329162,2952.5,2952.2,0.81800913]
[1764119283470,0.4787,2952.3,2952.2,0.81800913]
[1764119284168,0.4787,2952.3,2952.2,1.30770913]
[1764119284567,0.48279162,2952.5,2952.4,0.4897]
[1764119284876,0.48279162,2952.5,2952.4,1.30770913]
[1764119285676,0.00409162,2952.5,2952.4,1.30770913]
[1764119285970,0.48279162,2952.5,2952.4,1.30770913]
[1764119286360,0.00409162,2952.5,2952.4,1.30770913]
[1764119289669,0.48279162,2952.5,2952.4,1.30770913]
[1764119289873,0.00409162,2952.5,2952.4,1.30770913]
[1764119295482,0.00409162,2952.5,2952.4,0.4897]
[1764119295682,0.00409162,2952.5,2952.4,1.30770913]
[1764119295981,0.49039162,2952.5,2952.4,1.30770913]
[1764119297077,0.00409162,2952.5,2952.4,1.30770913]
[1764119306286,0.4863,2953.4,2953.3,0.4815]
[1764119306489,0.4863,2953.4,2953.3,1.29950913]
[1764119307278,0.48983568,2953.4,2953.3,1.29950913]
[1764119307786,0.48983568,2953.4,2953.3,0.4815]
[1764119307986,0.4863,2953.2,2953.1,1.30458716]
[1764119310384,0.4863,2953.2,2953.1,0.00507803]
[1764119311281,0.4863,2953.2,2953.1,1.30458716]
[1764119312083,0.4863,2953.2,2953.1,0.82308716]
[1764119312288,0.4863,2953.2,2953.1,1.30458716]
[1764119314885,1.32891159,2953.2,2953.1,0.48657803]
[1764119315079,0.4863,2953.2,2953.1,0.00507803]
[1764119315480,1.32883525,2953.2,2953.1,0.00507803]
[1764119318495,1.32883525,2953.2,2953.1,0.48657803]
[1764119320197,1.32883525,2953.2,2953.1,0.00507803]
[1764119320790,2.22940795,2953.2,2953.1,0.00507803]
[1764119320995,0.4863,2952.7,2952.6,0.81800913]
[1764119321190,0.2768,2952.5,2951.8,3.2475647]
[1764119321495,0.4863,2951.9,2951.8,0.4815]
[1764119321687,0.4863,2951.9,2951.1,0.81800913]
[1764119321688,0.4484,2951.6,2951.5,0.75941959]
[1764119321889,0.4484,2951.6,2951.5,0.00271959]
[1764119322489,0.45347803,2951.8,2951.7,0.4656]
[1764119322689,0.45347803,2951.8,2951.7,1.28360913]
[1764119322894,0.4484,2951.6,2951.5,0.82072872]
[1764119323095,0.4484,2951.6,2951.5,0.00271959]
[1764119326402,0.4484,2951.6,2951.5,0.73761959]
[1764119328299,0.00507803,2951.8,2951.7,0.4656]
[1764119328498,0.00507803,2951.8,2951.5,0.27201959]
[1764119328499,0.45347803,2951.8,2951.5,0.00271959]
[1764119328703,0.4484,2951.6,2951.5,0.00271959]
[1764119329201,0.4484,2951.4,2951.3,0.00507803]
[1764119330098,0.4484,2951.4,2951.3,0.00884773]
[1764119330294,0.00507803,2951.8,2951.3,1.29292147]
[1764119330498,0.4484,2951.4,2951.3,1.29292147]
[1764119330703,0.00507803,2951.8,2951.3,1.29292147]
[1764119330905,0.4484,2951.7,2951.6,1.28407374]
[1764119331099,0.45347803,2951.8,2951.7,0.4656]
[1764119331405,0.00507803,2951.8,2951.7,0.4656]
[1764119332894,0.45347803,2951.8,2951.7,0.4656]
[1764119333700,0.4484,2951.7,2951.6,0.81847374]
[1764119336106,0.4484,2951.4,2951.3,1.29292147]
[1764119337401,0.00507803,2951.8,2951.3,1.29292147]
[1764119339306,0.4484,2951.4,2951.3,0.00884773]
[1764119340696,0.4484,2951.4,2951.3,0.47444773]
[1764119342511,0.00507803,2951.8,2951.3,0.47444773]
[1764119342724,0.4503,2951.6,2951.5,0.745]
[1764119342900,0.45537803,2951.8,2951.7,0.4727]
[1764119343316,0.45537803,2951.8,2951.7,1.29117374]
[1764119344810,0.00507803,2951.8,2951.7,1.29117374]
[1764119346713,0.9005727,2952.9,2951.7,1.29117374]
[1764119346908,0.4503,2952.2,2952.1,0.81847374]
[1764119347116,0.4503,2952.2,2952.1,0.4727]
[1764119350114,0.9005727,2952.9,2952.5,0.2723]
[1764119350411,1.29193634,2952.8,2952.7,0.4727]
[1764119350616,0.4503,2952.8,2952.7,0.4727]
[1764119351310,0.9005727,2953.3,2952.7,0.4727]
[1764119351511,1.31192068,2953.2,2953.1,0.4649]
[1764119351714,0.469,2953.2,2953.1,0.4649]
[1764119358216,0.47253568,2953.4,2953.3,0.4649]
[1764119362924,0.00353568,2953.4,2953.3,0.4649]
[1764119363116,0.9005727,2954.3,2953.3,0.4649]
[1764119363314,0.2726,2954.5,2953.3,0.4649]
[1764119363520,0.84001837,2954.4,2953.3,0.4649]
[1764119363722,0.84001837,2954.3,2953.3,0.4649]
[1764119363916,0.2726,2954.5,2953.3,0.4649]
[1764119364122,0.84012553,2954.4,2953.3,0.4649]
[1764119364428,0.27594843,2954.5,2953.3,0.4649]
[1764119364626,0.83983345,2954.4,2953.3,0.4649]
[1764119364827,0.27594843,2954.5,2953.3,0.4649]
[1764119365121,0.83984183,2954.4,2953.3,0.4649]
[1764119365317,0.27594843,2954.5,2953.3,0.4649]
[1764119365522,0.83960093,2954.4,2953.3,0.4649]
[1764119365824,0.27594843,2954.5,2953.3,0.4649]
[1764119366026,0.83959991,2954.4,2953.3,0.4649]
[1764119366324,0.27594843,2954.5,2953.3,0.4649]
[1764119366521,0.83945254,2954.4,2953.3,0.4649]
[1764119366722,0.27594843,2954.5,2953.3,0.4649]
[1764119366925,0.83945241,2954.4,2953.3,0.4649]
[1764119367121,0.27594843,2954.5,2953.3,0.4649]
[1764119367320,0.83932296,2954.4,2953.3,0.4649]
[1764119367525,0.27594843,2954.5,2953.3,0.4649]
[1764119367730,0.83938239,2954.4,2953.3,0.4649]
[1764119367928,0.27594843,2954.5,2953.3,0.4649]
[1764119368130,0.83938226,2954.4,2953.3,0.4649]
[1764119368330,0.27594843,2954.5,2953.3,0.4649]
[1764119368528,0.83936037,2954.4,2953.3,0.4649]
[1764119368724,0.27594843,2954.5,2953.3,0.4649]
[1764119368917,0.83944041,2954.4,2953.3,0.4649]
[1764119369122,0.27594843,2954.5,2953.3,0.4649]
[1764119369323,0.83954576,2954.4,2953.3,0.4649]
[1764119369523,0.27594843,2954.5,2953.3,0.4649]
[1764119369729,0.83965788,2954.4,2953.3,0.4649]
[1764119369931,0.27594843,2954.5,2953.3,0.4649]
[1764119370232,0.83965774,2954.4,2953.3,0.4649]
[1764119370528,0.27594843,2954.5,2953.3,0.4649]
[1764119370730,0.83960041,2954.4,2953.3,0.4649]
[1764119370930,0.27594843,2954.5,2953.3,0.4649]
[1764119371234,0.83960047,2954.4,2953.3,0.4649]
[1764119371532,0.27594843,2954.5,2953.3,0.4649]
[1764119371734,0.83983676,2954.4,2953.3,0.4649]
[1764119371933,0.27594843,2954.5,2953.3,0.4649]
[1764119372134,0.83974725,2954.4,2953.3,0.4649]
[1764119372325,0.27594843,2954.5,2953.3,0.4649]
[1764119372326,0.83974725,2954.3,2953.3,0.4649]
[1764119372528,1.09339818,2954.5,2953.5,1.09134975]
[1764119372826,0.84011748,2954.4,2953.5,1.09490524]
[1764119373028,0.84011748,2954.3,2953.5,1.09490524]
[1764119373228,1.09339818,2954.5,2953.5,1.09490524]
[1764119373434,0.84048663,2954.4,2953.5,1.09490524]
[1764119373734,0.84048663,2954.3,2953.5,1.09490524]
[1764119373933,1.09339818,2954.5,2953.5,1.09490524]
[1764119374134,0.84048747,2954.4,2953.5,1.09490524]
[1764119374334,0.84048747,2954.3,2953.5,1.09490524]
[1764119374527,0.27594843,2954.5,2953.5,1.09490524]
[1764119374722,0.84096016,2954.4,2953.5,1.09490524]
[1764119374927,0.27594843,2954.5,2953.5,1.09490524]
[1764119375128,0.84096864,2954.4,2953.8,0.81744975]
[1764119375435,0.27594843,2954.5,2953.8,0.81744975]
[1764119375735,0.47234843,2954.5,2954.4,0.4649]
[1764119376123,0.75214843,2954.5,2954.0,0.2739]
[1764119376324,0.469,2954.1,2953.5,0.27745549]
[1764119376529,0.2798,2954.0,2953.5,0.27745549]
[1764119376733,0.469,2954.0,2953.9,0.4649]
[1764119376932,0.28314843,2954.5,2954.0,0.2739]
[1764119377136,0.84147797,2954.4,2954.0,0.2739]
[1764119377338,0.469,2954.1,2954.0,0.7388]
[1764119377936,0.28314843,2954.5,2954.0,0.7388]
[1764119378136,0.84166149,2954.4,2954.0,0.7388]
[1764119378432,1.31066149,2954.3,2954.2,0.4649]
[1764119378636,0.469,2954.3,2954.2,0.4649]
[1764119379437,0.00334843,2954.5,2954.2,0.4649]
[1764119379640,0.00334843,2954.5,2954.4,0.4649]
[1764119381632,0.84592365,2954.5,2954.4,0.4649]
[1764119381839,0.8456284,2954.5,2954.4,0.4649]
[1764119384144,0.00334843,2954.5,2954.4,0.4649]
[1764119386651,0.45214843,2954.5,2954.0,0.2739]
[1764119386848,0.45214843,2954.5,2954.4,0.4675]
[1764119387047,0.00334843,2954.5,2954.4,0.4675]
[1764119388947,0.45214843,2954.5,2954.0,0.2739]
[1764119389453,0.45214843,2954.5,2954.4,0.4675]
[1764119391356,0.00334843,2954.5,2954.4,1.28466458]
[1764119392156,0.45214843,2954.5,2954.4,1.28466458]
[1764119392450,1.56337655,2954.5,2954.0,1.09106458]
[1764119392653,0.4488,2954.1,2953.6,0.81716458]
[1764119392954,1.29252812,2954.0,2953.9,0.4675]
[1764119393654,1.29252812,2954.0,2953.4,0.81716458]
[1764119393655,1.56002812,2954.0,2953.4,0.81716458]
[1764119393951,0.4488,2953.6,2953.5,0.74495549]
[1764119396857,1.29213583,2953.6,2953.5,1.56212007]
[1764119397253,0.4488,2953.6,2953.5,1.56212007]
[1764119398554,0.4488,2953.6,2953.5,0.74495549]
[1764119399053,0.4488,2953.6,2953.5,0.47105549]
[1764119399352,1.29177568,2953.6,2953.5,0.00355549]
[1764119400450,1.29177568,2953.6,2953.0,0.2739]
[1764119400451,0.4744,2953.0,2952.9,0.45257803]
[1764119400653,0.4744,2953.0,2952.9,0.00507803]
[1764119400847,0.7498,2953.0,2952.9,0.00507803]
[1764119401350,0.4744,2952.5,2952.4,1.26466458]
[1764119401549,0.4744,2952.5,2952.4,1.26709034]
[1764119402959,0.4744,2952.5,2952.4,0.44992576]
[1764119403551,0.4744,2952.5,2952.4,1.26709034]
[1764119404151,0.7498,2952.5,2952.4,0.00242576]
[1764119405761,0.2754,2953.0,2952.5,0.2823]
[1764119406555,0.2754,2953.0,2952.6,0.81716458]
[1764119407960,0.4744,2952.7,2952.6,0.4475]
[1764119408762,0.4744,2952.7,2952.5,0.2823]
[1764119408961,0.2754,2953.0,2952.5,0.2823]
[1764119408962,0.4744,2952.6,2952.5,0.2823]
[1764119409166,0.4744,2952.5,2952.4,0.44992576]
[1764119409361,0.7498,2952.5,2952.4,0.00242576]
[1764119411958,0.4901,2952.3,2952.2,0.00507803]
[1764119412163,0.4901,2951.5,2951.4,0.47]
[1764119412364,0.4901,2951.3,2951.2,0.47]
[1764119412668,0.81716458,2951.9,2951.2,0.47]
[1764119412863,0.2706,2952.0,2951.3,0.81716458]
[1764119413062,0.27479012,2952.0,2951.3,0.82120087]
[1764119413258,0.4901,2951.5,2951.4,0.47507803]
[1764119414366,0.7607,2951.5,2951.4,0.00507803]
[1764119421774,0.4901,2951.5,2951.4,0.47507803]
[1764119422474,0.4901,2951.5,2951.4,0.00507803]
[1764119422676,0.7607,2951.5,2951.4,0.00507803]
[1764119423270,0.00507803,2951.9,2951.5,0.7648]
[1764119423271,0.4901,2951.6,2951.5,0.7648]
[1764119423467,0.4901,2951.6,2951.5,1.58196458]
[1764119424779,0.49517803,2951.9,2951.8,0.47]
[1764119424979,0.4901,2951.8,2951.7,0.81716458]
[1764119425379,0.00507803,2951.9,2951.7,0.81716458]
[1764119425380,0.00507803,2951.9,2951.8,0.47]
[1764119434087,0.49517803,2951.9,2951.8,0.47]
[1764119435287,1.33769029,2951.9,2951.8,0.47]
[1764119435489,0.4901,2951.8,2951.7,1.28716458]
[1764119435691,1.33261226,2951.8,2951.7,1.28716458]
[1764119435877,0.4901,2951.8,2951.7,1.28716458]
[1764119436284,0.00507803,2951.9,2951.5,0.2948]
[1764119436491,0.49517803,2951.9,2951.8,0.47]
[1764119436788,1.3378978,2951.9,2951.8,0.47]
[1764119440394,0.4901,2951.8,2951.7,0.81716458]
[1764119440585,1.33281977,2951.8,2951.7,0.81716458]
[1764119440986,1.33281977,2951.8,2951.7,1.28716458]
[1764119446899,1.33281977,2951.8,2951.7,0.81716458]
[1764119447494,1.31641977,2951.8,2951.7,0.4917]
[1764119448491,0.84271977,2951.8,2951.7,0.4917]
[1764119448694,1.31641977,2951.8,2951.7,0.4917]
[1764119453004,1.31641977,2951.8,2951.6,0.81845271]
[1764119453304,1.31641977,2951.7,2951.6,0.81845271]
[1764119453906,1.31641977,2951.7,2951.6,1.31015271]
[1764119457003,1.31641977,2951.7,2951.6,0.81845271]
[1764119457400,0.4737,2951.5,2951.4,0.49677803]
[1764119457606,1.58541977,2951.5,2951.4,0.00507803]
[1764119457805,2.48665464,2951.5,2951.4,0.00507803]
[1764119458004,0.84271977,2951.5,2951.4,0.49677803]
[1764119458306,1.37493487,2951.8,2951.7,0.4917]
[1764119458501,0.4737,2951.6,2951.5,0.7738]
[1764119458897,1.32012632,2951.6,2951.5,0.7738]
[1764119459513,0.84642632,2951.6,2951.5,0.7738]
[1764119459816,1.37493487,2951.8,2951.7,0.4917]
[1764119460212,2.22162607,2951.8,2951.7,0.4917]
[1764119460713,1.3203912,2951.8,2951.7,0.4917]
[1764119461413,0.4737,2951.6,2951.5,0.7738]
[1764119461809,1.3203912,2951.6,2951.5,0.4917]
[1764119462116,1.3203912,2951.6,2951.4,0.00507803]
[1764119462117,0.7479,2951.5,2951.4,0.00507803]
[1764119462509,1.5945912,2951.5,2951.4,0.00507803]
[1764119468513,1.3184912,2951.5,2951.4,0.00507803]
[1764119468908,1.5945912,2951.5,2951.4,0.00507803]
[1764119471811,0.8466912,2951.5,2951.4,0.46477803]
[1764119472019,1.80622343,2951.9,2951.7,0.4637]
[1764119472020,0.4672,2951.8,2951.7,0.4637]
[1764119472314,1.37345921,2951.8,2951.7,0.4637]
[1764119472816,2.22084669,2951.8,2951.7,0.4637]
[1764119473213,0.4672,2951.6,2951.5,0.7526]
[1764119473407,1.31458748,2951.6,2951.5,0.7526]
[1764119475520,0.84738748,2951.6,2951.5,0.7526]
[1764119476821,1.31458748,2951.6,2951.5,0.4637]
[1764119477221,1.31458748,2951.6,2951.4,0.82353074]
[1764119477222,0.7436,2951.5,2951.4,0.00507803]
[1764119477421,1.31458748,2951.5,2951.4,0.46877803]
[1764119477924,1.31458748,2951.5,2951.4,0.00507803]
[1764119478119,1.59098748,2951.5,2951.4,0.00507803]
[1764119480520,2.49724669,2951.5,2951.4,0.00507803]
[1764119480723,0.4672,2950.9,2950.8,1.28215271]
[1764119481726,0.4672,2950.9,2950.8,1.28615058]
[1764119483027,0.90746862,2951.4,2950.8,1.28615058]
[1764119483224,1.4771636,2951.5,2951.4,0.4637]
[1764119483225,0.90746862,2951.5,2951.4,0.4637]
[1764119483426,0.84522654,2951.5,2951.4,0.4637]
[1764119485226,1.31242654,2951.5,2951.4,0.4637]
[1764119486132,0.4672,2951.3,2951.2,1.28215271]
[1764119486428,1.31242654,2951.3,2951.2,1.28215271]
[1764119486728,1.31242654,2951.3,2951.2,0.81845271]
[1764119487732,0.84522654,2951.3,2951.2,1.28215271]
[1764119488733,1.31242654,2951.3,2951.2,1.28215271]
[1764119492630,0.84522654,2951.3,2951.2,1.28215271]
[1764119495438,1.31242654,2951.3,2951.2,1.28215271]
[1764119499035,1.31242654,2951.3,2951.2,0.81845271]
[1764119500138,1.31242654,2951.3,2951.2,1.28215271]
[1764119506536,1.31242654,2951.3,2951.2,0.81845271]
[1764119512049,1.31242654,2951.3,2951.2,1.31215271]
[1764119512642,1.31242654,2951.3,2951.2,1.31238141]
[1764119521161,0.84522654,2951.3,2951.2,1.31238141]
[1764119522660,0.91254665,2951.9,2951.8,0.4639]
[1764119522862,1.30293663,2951.9,2951.8,1.28258141]
[1764119523062,0.85153663,2951.9,2951.8,1.28258141]
[1764119523455,0.90746862,2952.4,2952.3,0.4639]
[1764119523665,0.90746862,2952.5,2952.4,0.4639]
[1764119523960,0.90746862,2952.5,2952.4,1.28258141]
[1764119524161,1.35886862,2952.6,2952.5,0.7524]
[1764119524363,1.29150882,2952.6,2952.5,1.57108141]
[1764119524564,0.84010882,2952.6,2952.5,1.57108141]
[1764119525459,0.00437232,2952.6,2952.5,1.57108141]
[1764119525859,0.76618914,2953.1,2953.0,0.7524]
[1764119526057,1.6521636,2954.0,2953.9,0.4639]
[1764119526259,5.0340259,2954.9,2953.5,0.2885]
[1764119526260,1.4714636,2955.0,2954.5,0.2885]
[1764119526562,1.4714636,2955.5,2955.0,0.2885]
[1764119526763,0.00439438,2955.5,2955.3,0.4639]
[1764119526958,0.46087241,2955.5,2955.4,1.28258141]
[1764119527158,0.00947241,2955.5,2955.4,1.28258141]
[1764119528362,1.08938141,2956.5,2955.4,1.28258141]
[1764119528566,1.08938141,2956.5,2955.9,0.4639]
[1764119528567,0.4514,2956.0,2955.9,0.4639]
[1764119528963,0.4514,2955.5,2955.0,0.29617881]
[1764119529361,0.4514,2955.5,2955.4,0.4639]
[1764119529562,0.45551278,2955.5,2955.4,0.4639]
[1764119533075,0.00411278,2955.5,2955.4,0.4639]
[1764119533876,0.44991278,2955.5,2955.4,0.4639]
[1764119534073,0.73371278,2955.5,2955.0,0.29617881]
[1764119534770,0.4458,2955.1,2955.0,0.00767881]
[1764119535374,0.4458,2955.1,2955.0,0.47497881]
[1764119535872,0.4458,2955.1,2955.0,0.76347881]
[1764119537077,0.4458,2955.1,2955.0,0.00767881]
[1764119538273,0.44991278,2955.5,2955.4,0.4673]
[1764119538474,0.00411278,2955.5,2955.4,0.4673]
[1764119539273,0.44991278,2955.5,2955.4,0.4673]
[1764119539674,0.00411278,2955.5,2955.4,0.4673]
[1764119543179,0.2707,2956.5,2955.4,1.6915766]
[1764119543482,1.293,2956.7,2955.5,0.2885]
[1764119543669,1.293,2956.7,2955.8,1.2242766]
[1764119544381,1.29691525,2956.7,2955.8,1.2242766]
[1764119544574,0.00391525,2956.7,2956.6,0.4673]
[1764119544774,0.00391525,2956.7,2956.0,0.2885]
[1764119544775,0.4458,2956.6,2956.0,0.2885]
[1764119545187,0.2814,2957.0,2956.5,0.7558]
[1764119545379,0.45294,2957.5,2956.5,0.7558]
[1764119545572,0.45294,2957.5,2956.7,0.00507803]
[1764119545776,0.45706628,2957.5,2956.7,0.00507803]
[1764119546385,0.4458,2956.8,2956.7,0.47237803]
[1764119546786,0.45706628,2957.5,2956.7,0.47237803]
[1764119547480,0.4458,2956.8,2956.7,0.47237803]
[1764119547678,0.4458,2956.8,2956.7,0.00507803]
[1764119549385,0.4458,2956.8,2956.7,0.47237803]
[1764119549880,0.4458,2956.8,2956.7,0.00507803]
[1764119550788,1.26872824,2956.8,2956.7,0.00507803]
[1764119551083,0.4458,2956.1,2956.0,0.2885]
[1764119551290,0.4458,2956.1,2956.0,0.7558]
[1764119554186,1.27473848,2956.1,2956.0,0.7558]
[1764119554382,1.27473848,2956.1,2956.0,0.4673]
[1764119554985,1.27473848,2956.1,2955.8,0.00507803]
[1764119554986,0.4458,2955.9,2955.8,0.00507803]
[1764119555186,3.07588388,2955.9,2955.8,0.00507803]
[1764119555684,1.27473848,2955.9,2955.8,0.00507803]
[1764119558092,0.4458,2955.1,2955.0,0.75840078]
[1764119558294,1.27857053,2955.1,2955.0,0.75840078]
[1764119559089,1.27857053,2955.1,2954.1,1.139]
[1764119559090,0.4458,2954.9,2953.5,0.2885]
[1764119559391,1.65454293,2954.4,2954.3,0.4673]
[1764119559599,2.48348141,2954.4,2954.3,0.4673]
[1764119560197,1.27473848,2954.4,2954.3,0.47136294]
[1764119560897,0.4458,2954.2,2954.1,0.00507803]
[1764119561301,3.08421849,2954.2,2954.1,0.00507803]
[1764119561492,0.4458,2953.6,2953.0,0.2885]
[1764119561799,0.82893848,2953.5,2953.0,0.2885]
[1764119561993,0.4537,2953.1,2953.0,0.29258922]
[1764119562192,0.4537,2953.1,2953.0,0.77778922]
[1764119562594,0.2735,2953.5,2953.0,0.77778922]
[1764119562793,0.4537,2953.1,2953.0,0.77778922]
[1764119562987,1.282301,2953.1,2953.0,0.77778922]
[1764119563192,0.4537,2953.1,2953.0,0.48928922]
[1764119563397,0.4537,2953.1,2953.0,0.00408922]
[1764119563601,1.28131969,2953.1,2953.0,0.00408922]
[1764119565400,0.4537,2953.1,2953.0,0.48928922]
[1764119565996,0.2735,2953.5,2953.0,0.76658922]
[1764119566305,0.82561043,2953.4,2953.0,0.76658922]
[1764119566503,0.2735,2953.5,2953.0,0.76658922]
[1764119566800,0.4537,2953.1,2953.0,0.76658922]
[1764119568205,0.4537,2953.5,2953.4,0.4852]
[1764119570097,0.7272,2953.5,2953.0,0.28138922]
[1764119570798,0.4537,2953.5,2953.4,0.4852]
[1764119571002,0.4537,2953.5,2953.0,0.28138922]
[1764119571995,0.7272,2953.5,2953.0,0.28138922]
[1764119572291,0.4537,2953.1,2953.0,0.76658922]
[1764119573704,0.2735,2953.5,2953.0,0.76658922]
[1764119576803,0.4537,2953.1,2953.0,0.76658922]
[1764119577002,0.4537,2953.1,2953.0,0.48928922]
[1764119577202,0.4537,2953.1,2953.0,0.00408922]
[1764119578006,0.4537,2953.1,2953.0,0.76658922]
[1764119578205,0.16937,2953.4,2953.0,0.76658922]
[1764119578408,0.44284,2954.0,2953.3,0.4852]
[1764119578609,0.82460614,2953.9,2953.3,0.4852]
[1764119578809,0.44284,2954.0,2953.3,0.4852]
[1764119579016,0.4537,2953.1,2953.0,0.00408922]
[1764119579712,0.2735,2954.0,2953.0,0.28138922]
[1764119580011,0.4537,2953.6,2953.5,0.7625]
[1764119580400,0.4537,2953.1,2953.0,0.76658922]
[1764119580606,0.4537,2953.5,2953.4,0.4852]
[1764119582100,0.62306,2953.7,2953.6,0.4852]
[1764119583313,0.4513,2953.6,2953.0,0.28138922]
[1764119584314,0.4513,2953.6,2953.5,0.4716]
[1764119584719,0.4513,2953.6,2953.5,0.7425]
[1764119584918,1.28035754,2953.6,2953.5,0.7425]
[1764119587219,2.18513216,2953.6,2953.5,0.7425]
[1764119588114,2.48664084,2953.6,2953.5,0.7425]
[1764119589116,3.08978249,2953.6,2953.5,0.7425]
[1764119589714,3.08978249,2953.6,2953.0,0.28138922]
[1764119589914,1.36099807,2953.3,2953.2,0.4716]
[1764119590115,2.4932883,2953.3,2953.2,0.4716]
[1764119592118,2.0419883,2953.3,2953.2,0.4716]
[1764119592715,1.21293076,2953.3,2953.2,0.4716]
[1764119592914,2.5322883,2953.3,2953.2,0.4716]
[1764119594711,2.0419883,2953.3,2953.2,0.4716]
[1764119596223,0.4903,2953.1,2953.0,0.00408922]
[1764119596417,3.12878249,2953.1,2953.0,0.00408922]
[1764119596721,3.12878249,2953.1,2953.0,0.75738922]
[1764119597023,0.82905754,2953.1,2953.0,0.75738922]
[1764119599014,2.04378115,2953.1,2953.0,0.75738922]
[1764119600122,2.53408115,2953.1,2953.0,0.75738922]
[1764119600326,1.31935754,2953.1,2953.0,0.75738922]
[1764119600521,2.5340009,2953.1,2953.0,0.75738922]
[1764119600723,1.31935754,2953.1,2953.0,0.75738922]
[1764119601319,2.04367334,2953.1,2953.0,0.75738922]
[1764119601526,0.82905754,2953.1,2953.0,0.75738922]
[1764119601721,0.91104043,2953.2,2953.1,0.4801]
[1764119601929,0.91104043,2953.2,2953.1,1.297822]
[1764119602122,0.83504111,2953.2,2953.1,1.297822]
[1764119602324,1.2146158,2953.3,2953.2,0.4801]
[1764119602725,2.04964572,2953.3,2953.2,0.4801]
[1764119603120,1.2146158,2953.3,2953.2,0.4801]
[1764119603325,2.04964572,2953.3,2953.2,0.4801]
[1764119603725,1.2146158,2953.3,2953.2,0.4801]
[1764119604029,2.04964572,2953.3,2953.2,0.4801]
[1764119604225,0.83502992,2953.3,2953.2,0.4801]
[1764119605033,2.04964572,2953.3,2953.2,0.4801]
[1764119605329,0.83502992,2953.3,2953.2,0.4801]
[1764119605828,1.40131636,2953.6,2953.5,0.7533]
[1764119606030,2.23635568,2953.6,2953.5,0.7533]
[1764119607033,1.74605568,2953.6,2953.5,0.7533]
[1764119607333,0.83503932,2953.6,2953.5,0.7533]
[1764119608337,1.32533932,2953.6,2953.0,0.27728922]
[1764119608534,0.83503932,2953.5,2953.0,0.27728922]
[1764119608737,0.83503932,2953.4,2953.0,0.27728922]
[1764119609037,0.4903,2953.1,2953.0,0.48418922]
[1764119609228,0.4903,2953.1,2953.0,0.00408922]
[1764119609428,1.32440516,2953.1,2953.0,0.00408922]
[1764119611933,1.32444544,2953.1,2953.0,0.00408922]
[1764119614230,0.4903,2953.3,2953.2,0.4801]
[1764119614629,1.32438844,2953.3,2953.2,0.4801]
[1764119616539,0.4903,2953.1,2953.0,0.75738922]
[1764119617030,0.4903,2952.1,2952.0,3.19815557]
[1764119617229,0.4903,2952.1,2952.0,0.7686]
[1764119617635,0.4903,2952.1,2951.5,1.66358744]
[1764119618029,0.49385791,2952.1,2951.5,1.66623749]
[1764119618235,0.49893594,2952.1,2952.0,0.4801]
[1764119618632,0.49893594,2952.1,2952.0,0.7533]
[1764119621339,0.00863594,2952.1,2952.0,0.7533]
[1764119621534,0.90957629,2952.9,2952.0,0.7533]
[1764119621736,1.31105977,2952.8,2952.7,0.475]
[1764119622036,0.83125977,2952.8,2952.7,0.475]
[1764119622335,0.90957629,2953.2,2952.7,0.475]
[1764119622641,0.4798,2952.8,2952.7,0.475]
[1764119623443,0.91771075,2953.2,2952.7,0.475]